Cogmind - Beta 13 @@@ ROGUE MODE // 2024.03.23 @ 11:47:48 Player: Senator honkstrong Result: Destroyed by D-53 Grenadier with Mini Grenade Launcher Performance ------------- Evolutions (0) 0 Regions Visited (2) 400 Robots Destroyed (61) 305 Value Destroyed (1038) 1038 Prototype IDs (2) 40 Alien Tech Used (0) 0 Bonus (16) 16 TOTAL SCORE: 1799 Bonus ------- High Alert Combat Kills 16 Cogmind --------- Core Integrity 0/250 Matter 197/300 Energy 125/125 System Corruption 4% Temperature Warm (120) Movement Treading (160) Location -10/Mines Parts ------- > --- POWER (1) -------- Light Ion Engine > --- PROPULSION (2) --- Light Treads Light Treads > --- UTILITY (2) ------ Large Storage Unit Hardened Light Armor Plating > --- WEAPON (2) ------- Ion Cannon Light Assault Rifle > --- INVENTORY (15) --- Light Treads Advanced Targeting Computer Hardened Light Armor Plating Hardened Light Armor Plating Hardened Light Armor Plating Light Assault Rifle Bore Cannon Rocket Launcher Missile Launcher Improved Datajack Mining Laser Peak State ------------ > --- POWER ------------ (None) > --- PROPULSION ------- Light Treads Light Treads > --- UTILITY ---------- Large Storage Unit Hardened Light Armor Plating > --- WEAPON ----------- Ion Cannon Missile Launcher > --- INVENTORY -------- Light Treads Advanced Targeting Computer Hardened Light Armor Plating Hardened Light Armor Plating Hardened Light Armor Plating Light Assault Rifle Light Assault Rifle Rocket Launcher Improved Datajack Mining Laser [Rating: 12] Favorites ----------- Power Ion Engine Engine Ion Engine Propulsion Light Treads Treads Light Treads Utility Light Armor Plating Storage Large Storage Unit Protection Light Armor Plating Weapon Assault Rifle Energy Gun Particle Gun Energy Cannon Beam Cannon Ballistic Gun Assault Rifle Launcher Grenade Launcher Build | -11 -10 -10 ------- Run | Yrd Mat Min Slots Evolved . | . . . Power . | . . . Propulsion . | . . . Utility . | . . . Weapon . | . . . Parts Attached 34 | 6 19 9 Power 2 | 1 . 1 Engine 2 | 1 . 1 Core . | . . . Reactor . | . . . Propulsion 4 | 2 . 2 Treads 4 | 2 . 2 Leg . | . . . Wheel . | . . . Hover . | . . . Flight . | . . . Utility 4 | 1 2 1 Device . | . . . Storage 2 | 1 1 . Processor . | . . . Hackware . | . . . Protection 2 | . 1 1 Artifact . | . . . Weapon 24 | 2 17 5 Energy Gun 2 | . 2 . Energy Cannon 2 | . 1 1 Ballistic Gun 10 | 2 6 2 Ballistic Cannon . | . . . Launcher 10 | . 8 2 Special Weapon . | . . . Impact Weapon . | . . . Slashing Weapon . | . . . Piercing Weapon . | . . . Special Melee Weapon . | . . . Unidentified Prototypes . | . . . Parts Lost 6 | . . 6 Power 1 | . . 1 Propulsion 2 | . . 2 Utility 1 | . . 1 Weapon 2 | . . 2 Highest Loss Streak 6 | . . 6 To Critical Strikes . | . . . Average Slot Usage (%) 98 | . 99 96 Engine 13 | . 14 11 Treads 28 | . 28 28 Storage 14 | . 14 14 Protection 13 | . 13 13 Energy Gun 4 | . 6 . Energy Cannon 4 | . 5 4 Ballistic Gun 10 | . 9 13 Launcher 8 | . 7 10 Naked Turns . | . . . Heaviest Build 37 | 12 34 37 Greatest Support 40 | 40 40 40 Greatest Overweight (x) . | . . . Average Overweight (x) . | . . . Largest Inventory Capacity 15 | 8 15 15 Average Capacity 12 | 7 12 15 Most Carried 15 | . 15 15 Average Carried 10 | . 10 14 Final Capacity 15 | 8 15 15 Final Carried 15 | . 15 11 Class Distribution -------------------- 100% | Mutant Dominant Class ---------------- Mutant | -10/Materials Mutant | -10/Mines Resources | -11 -10 -10 ----------- Run | Yrd Mat Min Matter Collected 1627 | 340 1027 260 Remotely . | . . . Salvage Created 1798 | 330 1052 416 Parts 132 | 37 76 19 Haulers Intercepted 2 | . 2 . Recyclers Shooed . | . . . Parts Field Recycled . | . . . Retrieved Matter . | . . . Parts Self-Destructed . | . . . Prevented . | . . . Kills | -11 -10 -10 ------- Run | Yrd Mat Min Combat Hostiles Destroyed 34 | . 13 21 Guns 4 | . 4 . Cannons 2 | . . 2 AOE 28 | . 9 19 Classes Destroyed 10 | 3 6 1 Worker 12 | 4 8 . Builder 4 | . 2 2 Tunneler 15 | 9 3 3 Hauler 2 | . 2 . Recycler 8 | 1 4 3 Operator 3 | . 3 . Watcher 3 | . 3 . Swarmer 3 | . 3 . Grunt 11 | . 10 1 Assembled 20 | . . 20 Best Kill Streak 18 | 5 3 18 Combat Bots Only 18 | . 3 18 Max Kills in Single Turn 7 | 1 3 7 Gunslinging . | . . . Exploded 7 | . 2 7 Melee . | . . . Uniques/NPCs Destroyed . | . . . Combat | -11 -10 -10 -------- Run | Yrd Mat Min Hostile Shots Fired 67 | . 23 44 Missed 19 | . 8 11 Damage Taken 1172 | . 213 959 Core 257 | . 33 224 Absorbed by Shields . | . . . Core Remaining (%) 100 | 100 . . Volleys Fired 230 | 40 129 61 Largest 2 | 2 2 2 Hottest 90 | 40 90 80 Shots Fired 360 | 80 189 91 Gun 255 | 80 116 59 Cannon 32 | . 13 19 Launcher 73 | . 60 13 Special . | . . . Kinetic 225 | 80 86 59 Thermal 62 | . 43 19 Explosive 73 | . 60 13 Electromagnetic . | . . . Robot Hit Streak 10 | 10 9 7 Robot Miss Streak 4 | 3 3 4 Penetration Max . | . . . Secondary Targets . | . . . Shots Hit Robots 158 | 46 65 47 Core Hits 129 | 24 57 48 Critical Kills 1 | 1 . . Critical Parts Destroyed 1 | . . 1 Critical Strikes 3 | 1 1 1 Burn 1 | . 1 . Destroy 2 | 1 . 1 Melee Attacks . | . . . Impact . | . . . Slashing . | . . . Piercing . | . . . Sneak Attacks . | . . . Combat Hostiles . | . . . Follow-up Attacks . | . . . Damage Inflicted 3939 | 395 1682 1862 Guns 1529 | 395 763 371 Cannons 342 | . 124 218 Explosions 2049 | . 790 1259 Melee . | . . . Ramming 19 | . 5 14 Kinetic 1222 | 395 456 371 Thermal 649 | . 431 218 Explosive 2049 | . 790 1259 Electromagnetic . | . . . Impact . | . . . Slashing . | . . . Piercing . | . . . Highest Corruption 4 | . . 4 Average Corruption 4 | . . 4 Corruption Purged . | . . . Corruption Blocked . | . . . Effects 7 | . . 7 Message Errors 2 | . . 2 Matter Fused 1 | . . 1 Heat Flow Errors 1 | . . 1 Data Loss (minor) 1 | . . 1 Misfires 1 | . . 1 Weapon Failures 1 | . . 1 Overload Shots . | . . . Overflow Damage 116 | . 27 89 Projectiles . | . . . Explosions 116 | . 27 89 Melee . | . . . Knockbacks . | . . . Impact . | . . . Kinetic . | . . . Secondary . | . . . Self-Inflicted Damage 221 | . 42 179 Shots 11 | . 4 7 Rammed 4 | . 2 2 Targets Rammed 4 | . 2 2 Kicked . | . . . Crushed . | . . . Highest Temperature 268 | . 132 268 Average Temperature 44 | . 35 67 Received Heat Transfer 131 | . 93 38 Siege Activations . | . . . Robots Corrupted . | . . . Combat Hostiles . | . . . Parts Fried . | . . . Impact Corruptions . | . . . Robots Melted . | . . . Combat Hostiles . | . . . Parts Melted . | . . . Heat Transferred 1443 | . 1036 407 Parts Sabotaged . | . . . Parts Stolen . | . . . Parts Stripped . | . . . Power Chain Reactions . | . . . Alert | -11 -10 -10 ------- Run | Yrd Mat Min Peak Influence 817 | 70 817 436 Initial 318 | . 45 318 Average 396 | 35 485 292 Maximum Alert Level 3 | . 3 2 Low Security (%) 18 | 100 9 10 Level 1 30 | . 21 64 Level 2 38 | . 49 25 Level 3 12 | . 18 . Level 4 . | . . . Level 5 . | . . . High Security . | . . . Max Security . | . . . Squads Dispatched 5 | . 4 1 Investigation 3 | . 2 1 Extermination . | . . . Reinforcement 2 | . 2 . Assault . | . . . Garrison . | . . . Intercept . | . . . Searches Triggered . | . . . Construction Impeded . | . . . Haulers Reinforced . | . . . Active Scanning Responses . | . . . Cargo Convoy Interrupts . | . . . Stealth | -11 -10 -10 --------- Run | Yrd Mat Min Distress Signals 1 | . 1 . Communications Jammed . | . . . Distress Signals . | . . . Times Spotted 45 | . 22 23 Peak Tracking Total 15 | . 4 15 Tactical Retreats 1 | . 1 . Traps | -11 -10 -10 ------- Run | Yrd Mat Min Traps Triggered . | . . . Indirectly . | . . . Trap Hack Attempts . | . . . Triggered . | . . . Disarmed . | . . . Reprogrammed . | . . . Reused . | . . . Traps Extracted . | . . . Installed . | . . . Triggered . | . . . Machines | -11 -10 -10 ---------- Run | Yrd Mat Min Machines Disabled 31 | . 28 3 Max in Single Turn 2 | . 2 1 Machines Repaired . | . . . Machines Dismantled . | . . . Machines Sabotaged . | . . . Overloaded Fab Kills . | . . . Hacking | -11 -10 -10 --------- Run | Yrd Mat Min Machines Accessed 8 | . 7 1 Terminals 6 | . 6 . Fabricators . | . . . Repair Stations . | . . . Recycling Units 1 | . 1 . Scanalyzers . | . . . Garrison Access . | . . . Total Hacks 23 | . 22 1 Successful 9 | . 8 1 Failed 14 | . 14 . Catastrophic 3 | . 3 . Database Lockouts . | . . . Manual 18 | . 18 . Terminals 21 | . 21 . Fabricators . | . . . Repair Stations . | . . . Recycling Units 1 | . 1 . Scanalyzers . | . . . Garrison Access . | . . . Terminal Hacks 6 | . 5 1 Robot Analysis 3 | . 3 . Prototype ID Bank 1 | . 1 . Open Door 1 | . . 1 Locate Traps 1 | . 1 . Fabricator Hacks . | . . . Repair Station Hacks . | . . . Recycling Unit Hacks . | . . . Scanalyzer . | . . . Garrison Access Hacks . | . . . Unauthorized Hacks 3 | . 3 . Terminals 3 | . 3 . Botnet 3 | . 3 . Fabricators . | . . . Repair Stations . | . . . Recycling Units . | . . . Scanalyzers . | . . . Garrison Access . | . . . Data Cores Recovered 1 | . 1 . Used . | . . . Hacking Detections 7 | . 7 . Full Trace Events 3 | . 3 . Feedback Events . | . . . Feedback Blocked . | . . . Robot Schematics Acquired . | . . . Robots Built . | . . . Authchips . | . . . Time . | . . . Total Robot Build Rating . | . . . Part Schematics Acquired . | . . . Parts Built . | . . . Authchips . | . . . Time . | . . . Total Part Build Rating . | . . . Parts Repaired . | . . . Time . | . . . Parts Recycled . | . . . Recycled Matter . | . . . Retrieved Matter . | . . . Retrieved Components . | . . . Parts Scanalyzed . | . . . Part Schematics Acquired . | . . . Parts Damaged . | . . . Bothacking | -11 -10 -10 ------------ Run | Yrd Mat Min Used RIF Installer . | . . . Robots Hacked . | . . . Non-combat . | . . . Combat . | . . . Robot Hacks Applied . | . . . Relay Couplers Released . | . . . Fabnet Peak Effective % . | . . . Robots Rewired . | . . . Allies Hacked . | . . . Hacks Repelled . | . . . Allies | -11 -10 -10 -------- Run | Yrd Mat Min Total Allies 3 | . . 3 Largest Group 3 | . . 3 Highest-Rated Group 40 | . . 40 Highest-Rated Ally 16 | . . 16 Total Orders 1 | . . 1 STAY 1 | . . 1 Ally Attacks . | . . . Total Damage . | . . . Kills . | . . . Allies Corrupted . | . . . Allies Melted . | . . . Intel | -11 -10 -10 ------- Run | Yrd Mat Min Robot Analysis Total 3 | . 3 . Derelict Logs Recovered 2 | . . 2 Drone Launches . | . . . Drone Recoveries . | . . . Exploration | -11 -10 -10 ------------- Run | Yrd Mat Min Turns Passed 3554 | 318 2345 891 Spaces Moved 1741 | 117 1182 442 Core 3 | 3 . . Treads 1738 | 114 1182 442 Legs . | . . . Wheels . | . . . Hover . | . . . Flight . | . . . Fastest Speed 50 | 50 160 160 Average Speed 159 | 157 160 160 Slowest Speed 160 | 160 160 160 Overloaded Moves . | . . . Propulsion Burnouts . | . . . Robots Hopped . | . . . Cave-ins Triggered . | . . . Exploration Rate (%) 62 | 5 99 82 Regions Visited 2 Branch Regions 1 Pre-discovered Areas 1 | . . 1 Known Exits Taken . | . . . Unknown Exits Taken 2 | 1 1 . Scrap Searched 1 | . . 1 Spaces Dug 31 | . 31 . Terrain Destroyed 538 | . 436 102 Melee . | . . . Projectile 1 | . . 1 AOE 537 | . 436 101 Terrain Rammed . | . . . Walls Destroyed . | . . . Machines Disabled . | . . . Actions | -11 -10 -10 --------- Run | Yrd Mat Min Total 2160 | 184 1440 536 Wait 122 | 22 89 11 Move 1739 | 116 1181 442 Hop . | . . . Pick Up 21 | . 15 6 Fast Attach 10 | 6 3 1 Attach 5 | . . 5 Detach 1 | . 1 . Swap 19 | . 16 3 Drop 9 | . 4 5 Fire 230 | 40 129 61 Melee . | . . . Ram . | . . . Kick . | . . . Crush 4 | . 2 2 Escape Stasis . | . . . Rewire . | . . . Trap . | . . . Miscellaneous . | . . . Route ------- -11/Scrapyard -10/Materials (discovered 4 exits: [*Mat x3] / *Min) -10/Mines (discovered 1 exit: [*Mat]) History --------- Turn | Location | Event 8 | -11/Scrapyard | Discovered new exit (range 14) 319 | -11/Scrapyard | Entered Materials 320 | -10/Materials | Build established: Mutant 371 | -10/Materials | Discovered new exit (range 16) 908 | -10/Materials | Discovered new exit (range 15) 1318 | -10/Materials | Discovered new exit (range 15) 1773 | -10/Materials | Discovered new exit (range 4) 2664 | -10/Materials | Entered Mines 2666 | -10/Mines | Discovered new exit (range 6) 2767 | -10/Mines | Received a Rocket Launcher from a helpful Derelict 2861 | -10/Mines | Assisted by bots powering up and referring to "LRC-V3" 2962 | -10/Mines | Found a hidden stash of uninstalled traps 3126 | -10/Mines | Met a Derelict shopkeep closing up shop 3307 | -10/Mines | Learned location of Zion (-6) 3338 | -10/Mines | Assembled infested the area 3343 | -10/Mines | Assisted by a Guerilla fighting off Assembled 3366 | -10/Mines | Core integrity fell below 50% 3394 | -10/Mines | Destroyed 18 combat bots 3404 | -10/Mines | Lost 6 parts (1p2n1u2w) 3421 | -10/Mines | A weapon hastily lodged in a ceiling crevice suddenly fell to the ground 3548 | -10/Mines | Core integrity fell below 20% 3555 | -10/Mines | Destroyed by D-53 Grenadier with Mini Grenade Launcher Last Messages --------------- 03424_ Acquired Bore Cannon. 03425_ Acquired 4 matter. 03428_ Acquired 2 matter. 03430_ Acquired 4 matter. 03436_ Acquired 18 matter. 03441_ Searching scrap... 03441_ Found Huge Storage Unit. 03441_ Found Hammer. 03441_ Found Hcp. Matter Pod. 03441_ Found Heat Sink. 03441_ Found 22 Matter. 03442_ System corrupted: Heat flow error (+288). 03442_ Acquired 22 matter. 03483_ UE/ONZX9W8C02OEW&:RB 03502_ HVJGWLY2TJ8RT 03517_ T-07 Excavator destroyed. 03520_ Acquired 21 matter. 03523_ Acquired Lgt. Ion Engine. 03550_ The unstable cave ceiling collapses. Map ----- +----------------------------------------------------+ | | | | | | | | | | | | | ?????????????????????????????????????????????????? | | ?????????????????????????????????????????????????? | | ?????????????????????????????????????????????????? | | ?????????????????????????????????????????????????? | | ?????????????????????????????????????????????????? | | ?????????????????????????????????????????????????? | | ?????????????????????????????????????????????????? | | ?????????????????????????????????????????????????? | | ?????????????????????????????????????????????????? | | ??????????????????????????????????###????????????? | | ????????????????????????####?###### ##???????????? | | ???????????????????????## ### ! #???????????? | | ??????????????????????## < ## #### |#???????????? | | ??????????????????????# ## #??### #??????????? | | ??????????????????????# #?????##??????????? | | ?????????????????????## ###?????????????????? | | ????????????????###### ##??????????????????? | | ???????????????## # ##?????????????????? | | ??????????????## #?????????????????? | | ?????????????## @ #?????????????????? | | ?????????????# ##?????????????????? | | ?????????????# d #??#####???????????? | | ?????????????# ##?## ####????????? | | ???????????#### ## ### ##### ##???????? | | ????????#### ####!/ #???????? | | ??????### # # #?########## #???????? | | ??????# # # ## ###??????????## #???????? | | ?????## # # ## #?????????????## ##???????? | | ###### #??????????????## ###????????? | | !% # ##????????????????####??????????? | | #???????????????????????????????? | | ####### # ##???????????????????????????????? | | #????###### #####################???????????????? | | #???????# = ! #???????????????? | | #???????# *| #???######??????? | | ###?????# ################### ##?##""""##?????? | | ##????# #?????????????????# ###"/] !"#?????? | | ###### #?????????????##### ##" !! "#?????? | | != #?????????????# ## ]####???? | | *%= #?????????????# ### ## ## ##??? | | [#######?????????????# ### X ##?? | | ####???????????????## ## #?? | | ##??????????????# #### #?? | | #??????????????# ## ## ##?? | +----------------------------------------------------+ Best States ------------- Heat Dissipation 25 Energy Generation 10 Energy Capacity 250 Matter Stores 300 Matter Capacity 300 Sight Range 16 Terrain Scan Density 10 Armor Coverage 150 Evasion (%) 40 Recoil Reduction 2 Item Schematics ----------------- None Robot Schematics ------------------ None Fabricated ------------ Nothing Alien Tech Used ----------------- None Achievements -------------- Exterminator Challenges ------------ None Game ------ Seed DrainedMicroInverter Manual? 0 Play Time 00:28:19 Cumulative 65.5 hours Start 2024.03.23 @ 11:21:40 End 2024.03.23 @ 11:47:48 Sessions 1 Manual Loads 0 Difficulty Rogue Special Mode None Game No. 52 Rogue 52 Adventurer 0 Explorer 0 Win Type - Total 0 Types 0/0/0/0/0/0/0/0/0 Lore% 32 Gallery% 39 Achievement% 33 Wizard Run 0 Options --------- Layout 0 ASCII 0 Keyboard 0 Movement Mouse Keybinds 0 Fullscreen 1 Font 18/SmallcapsGlow Map View 76x50 Zoom Use 0% Tactical HUD 1 Map Filters NONE Filters NONE Steam 0 RUN: 8f261c79-58a4-457c-9a88-805252a21dac